bitfinex-derivatives/quotes_ETHF0:USTF0_20250926
["timestamp","ask_amount","ask_price","bid_price","bid_amount"]
[1758889147941,8.46704517,3888.9,3888.8,0.46253]
[1758889148134,8.46704517,3888.9,3888.8,0.68173]
[1758889148540,8.92956517,3888.9,3888.8,0.2192]
[1758889148737,8.0102248,3888.9,3888.4,3.2078]
[1758889149041,0.8867,3888.5,3888.4,3.67038]
[1758889149238,8.4411248,3888.9,3888.8,0.69544]
[1758889149434,0.86284274,3888.9,3888.8,0.92224]
[1758889149639,0.10584274,3888.9,3888.8,1.24504]
[1758889149839,3.4269,3889.3,3889.2,0.92219]
[1758889150141,3.4269,3889.3,3888.7,1.42237]
[1758889150142,0.757,3888.8,3888.7,0.69545]
[1758889150442,0.3186,3888.7,3888.6,1.24506]
[1758889150640,0.46249,3889.2,3889.1,0.4625]
[1758889150842,1.21949,3889.2,3889.1,0.4625]
[1758889151436,0.757,3889.2,3888.9,0.46252]
[1758889151638,0.46254,3888.8,3888.7,0.72853]
[1758889151845,8.04082206,3888.8,3888.7,0.46253]
[1758889152043,0.46256,3888.6,3888.5,0.78537]
[1758889152243,0.10586437,3888.6,3888.5,0.78537]
[1758889152846,0.56842437,3888.6,3888.5,0.78537]
[1758889153043,0.10586437,3888.6,3888.5,0.78537]
[1758889154251,0.10586437,3888.6,3888.5,0.46257]
[1758889154439,0.10586437,3888.6,3888.5,0.72857]
[1758889156138,0.10586437,3888.6,3888.5,5.72857]
[1758889157453,0.10586437,3888.6,3888.5,0.46257]
[1758889157652,0.10586437,3888.6,3888.5,0.72857]
[1758889160843,0.10586437,3888.6,3888.5,0.46257]
[1758889161049,0.10586437,3888.6,3888.5,0.72857]
[1758889161245,0.10586437,3888.6,3888.5,0.266]
[1758889161447,0.10586437,3888.6,3888.4,0.72858]
[1758889161748,0.10586437,3888.5,3888.4,0.46258]
[1758889162847,0.10586437,3888.5,3888.4,3.67038]
[1758889164048,0.10586437,3888.5,3888.4,3.62038]
[1758889164955,0.56843437,3888.5,3888.4,3.62038]
[1758889165151,0.46262,3888.2,3888.1,0.46262]
[1758889165354,0.46259,3888.4,3888.3,0.46259]
[1758889165550,0.6185089,3888.4,3887.9,0.02572116]
[1758889165757,0.46263,3888.0,3887.9,0.02572116]
[1758889165956,1.0811389,3888.0,3887.9,0.02145923]
[1758889166553,0.46267,3887.7,3887.5,0.46268]
[1758889166754,3.4738,3888.1,3887.5,0.46268]
[1758889166755,8.14672283,3887.6,3887.5,0.46268]
[1758889166951,7.68404283,3887.6,3887.5,0.46268]
[1758889168059,0.46273,3887.2,3886.7,3.2078]
[1758889168261,11.40421995,3887.6,3886.8,0.46277]
[1758889168262,7.57828206,3886.9,3886.8,0.46277]
[1758889168564,7.68404283,3886.9,3886.8,0.46277]
[1758889176768,2.34285681,3886.9,3886.8,0.46277]
[1758889178274,0.10576077,3886.9,3886.8,0.46277]
[1758889179476,0.10576077,3886.9,3886.8,0.72777]
[1758889180278,2.34285681,3886.9,3886.8,0.72777]
[1758889180779,0.10576077,3886.9,3886.8,0.72777]
[1758889181983,0.10576077,3886.9,3886.8,0.46277]
[1758889182277,0.10576077,3886.9,3886.8,0.72777]
[1758889182478,0.10576077,3886.9,3886.8,0.46277]
[1758889182680,8.15812307,3886.9,3886.8,0.46277]
[1758889183371,8.15812307,3886.9,3885.8,2.31444]
[1758889183372,11.16816307,3886.9,3886.2,3.2078]
[1758889183574,11.16816307,3886.9,3885.3,2.31472]
[1758889183575,7.5896023,3886.3,3885.0,1.3837459]
[1758889183781,7.5896023,3885.2,3885.1,0.72797]
[1758889184074,7.5896023,3885.6,3885.5,0.46293]
[1758889184270,7.69492477,3885.6,3885.5,0.46293]
[1758889184672,0.46293,3885.5,3885.4,0.265]
[1758889184882,0.10532247,3885.5,3885.4,0.265]
[1758889186987,3.2078,3885.7,3885.5,0.46293]
[1758889187178,3.2078,3886.3,3885.8,1.15723]
[1758889187369,0.10522531,3886.2,3886.0,0.46287]
[1758889187679,3.2078,3886.3,3886.2,0.46284]
[1758889187875,3.31302093,3886.3,3886.2,0.72784]
[1758889188077,0.10522093,3886.3,3886.2,0.72784]
[1758889189081,0.10522093,3886.3,3886.2,5.72784]
[1758889190582,9.3e-07,3886.3,3886.2,5.72784]
[1758889190778,3.2078,3886.7,3886.6,0.4628]
[1758889190979,3.2078,3887.1,3886.9,0.46276]
[1758889191280,3.2078,3887.1,3886.9,0.72776]
[1758889192983,7.5896023,3887.3,3886.9,0.72776]
[1758889193374,3.2078,3887.5,3886.9,0.72776]
[1758889193375,3.2078,3887.9,3887.1,1.15684]
[1758889193578,3.2078,3887.9,3887.8,0.46265]
[1758889193778,3.2078,3887.9,3887.8,0.72765]
[1758889194474,7.5896023,3888.5,3888.3,0.46259]
[1758889194475,3.2078,3888.4,3888.3,0.46259]
[1758889197690,3.2078,3888.9,3888.5,1.15643]
[1758889197884,3.2078,3888.9,3888.8,0.46253]
[1758889199382,3.2078,3888.9,3888.8,0.72753]
[1758889200486,12.51154855,3888.9,3888.7,0.46254]
[1758889200687,12.04901855,3888.9,3888.8,0.46254]
[1758889200892,12.31401855,3888.9,3888.8,0.46254]
[1758889201191,12.77653855,3888.9,3888.8,0.41254]
[1758889201387,12.31401855,3888.9,3888.8,0.41254]
[1758889201592,12.31401855,3888.9,3888.3,0.265]
[1758889201593,0.46254,3888.8,3888.6,0.46255]
[1758889201798,12.31401855,3888.9,3888.8,0.46254]
[1758889202794,12.41929362,3888.9,3888.8,0.46254]
[1758889202982,12.88181362,3888.9,3888.8,0.46254]
[1758889203181,17.41929362,3888.9,3887.3,2.31356]
[1758889203385,3.2078,3887.9,3887.7,1.15668]
[1758889203595,0.10522476,3887.8,3887.7,0.46267]
[1758889204495,0.56789476,3887.8,3887.7,0.46267]
[1758889204794,0.10522476,3887.8,3887.7,0.46267]
[1758889205389,0.46269,3887.6,3887.5,0.46269]
[1758889205589,0.56791476,3887.6,3887.5,0.46269]
[1758889205790,0.10522476,3887.6,3887.5,0.46269]
[1758889205991,0.10522476,3887.6,3887.2,0.265]
[1758889206287,0.46269,3887.5,3887.4,0.46269]
[1758889206482,0.10522476,3887.5,3887.4,0.46269]
[1758889206688,8.84121855,3887.7,3887.6,0.46268]
[1758889206888,9.21145609,3887.7,3887.6,0.46268]
[1758889207089,9.67412609,3887.7,3887.6,0.46268]
[1758889207290,9.21145609,3887.7,3887.1,0.265]
[1758889207487,12.04901855,3887.2,3886.5,1.15701]
[1758889207687,0.10523754,3887.1,3887.0,0.46274]
[1758889208295,0.10523754,3887.1,3886.8,0.46276]
[1758889208501,0.10523754,3887.1,3886.1,4.36493]
[1758889208502,0.37023754,3887.0,3886.5,0.4628]
[1758889208696,0.37023754,3887.0,3885.3,1.15737]
[1758889208697,0.46282,3886.4,3885.3,1.15737]
[1758889208892,3.2078,3885.8,3885.7,0.4629]
[1758889209090,3.2078,3885.8,3885.3,1.15737]
[1758889209091,3.31294291,3885.8,3885.6,0.46291]
[1758889209292,0.10514291,3885.7,3885.6,0.46291]
[1758889209601,5.10514291,3885.7,3884.4,3.2078]
[1758889209787,0.46299,3885.0,3884.4,3.4728]
[1758889209990,3.2078,3884.7,3884.4,0.265]
[1758889210192,3.2078,3884.7,3884.6,0.46304]
[1758889210795,3.2078,3884.7,3883.9,3.2078]
[1758889210992,0.10496697,3884.6,3884.3,0.46307]
[1758889211290,3.67086,3884.4,3883.4,4.36573]
[1758889211495,3.2078,3884.4,3884.1,0.46309]
[1758889211694,3.2078,3884.4,3884.2,0.46308]
[1758889211989,3.2078,3884.4,3883.6,1.15789]
[1758889212192,3.2078,3884.4,3884.2,0.46308]
[1758889212399,3.4728,3884.4,3883.5,0.265]
[1758889212592,3.2078,3884.4,3884.2,0.46308]
[1758889213295,3.2078,3884.4,3884.2,0.72808]
[1758889213501,3.2078,3884.4,3884.2,5.72808]
[1758889215497,0.1334,3885.5,3884.7,3.2078]
[1758889215704,0.3243,3885.4,3884.8,0.265]
[1758889216001,0.3243,3885.4,3885.3,0.46295]
[1758889216401,0.3243,3885.4,3885.3,0.79385]
[1758889216797,3.2078,3885.6,3885.5,0.46293]
[1758889216994,3.2335,3886.0,3885.9,0.46288]
[1758889217194,3.3669,3886.0,3885.1,3.5387]
[1758889217402,3.5321,3885.2,3885.1,0.46297]
[1758889217901,0.3243,3885.1,3885.0,0.46298]
[1758889218803,0.1334,3885.0,3884.3,3.2078]
[1758889219008,0.1334,3884.5,3884.2,0.265]
[1758889219303,0.4577,3884.5,3884.4,0.46306]
[1758889219916,3.5321,3884.8,3884.7,0.46302]
[1758889220104,3.5321,3884.8,3884.7,0.79392]
[1758889220409,0.3243,3884.8,3884.7,0.79392]
[1758889220606,0.3243,3884.8,3884.7,1.05892]
[1758889220802,3.2078,3885.2,3884.8,1.48844]
[1758889220999,3.2078,3885.2,3885.0,0.46299]
[1758889221303,0.3243,3885.1,3885.0,0.46299]
[1758889221907,3.5321,3885.2,3885.1,0.3309]
[1758889222098,3.2078,3885.2,3885.1,0.3309]
[1758889222511,0.3243,3885.6,3885.3,1.48829]
[1758889222901,0.3243,3885.6,3885.5,0.46293]
[1758889223107,0.4577,3885.5,3885.4,0.46293]
[1758889223899,0.4577,3885.5,3885.3,0.265]
[1758889223900,0.3243,3885.4,3885.3,0.46294]
[1758889225512,3.5321,3885.7,3885.6,0.46292]
[1758889226199,3.2078,3885.7,3885.6,0.79382]
[1758889226406,3.5321,3886.2,3886.1,0.46286]
[1758889226806,3.5321,3886.2,3886.1,0.79376]
[1758889227102,0.4577,3886.5,3886.4,0.46282]
[1758889227304,0.3243,3886.5,3886.4,0.46282]
[1758889227706,0.1334,3886.5,3886.4,0.46282]
[1758889228004,0.3243,3886.5,3886.4,0.46282]
[1758889228208,0.4577,3886.5,3886.4,0.46282]
[1758889228406,0.3243,3886.5,3886.4,0.46282]
[1758889229808,0.4577,3886.5,3886.4,0.72782]
[1758889230002,0.4577,3886.5,3886.4,0.46282]
[1758889230403,0.4577,3886.5,3885.8,1.15722]
[1758889230404,0.4577,3886.5,3886.2,0.265]
[1758889230604,0.3243,3886.4,3886.3,0.46283]
[1758889230908,0.3243,3886.3,3886.2,0.46284]
[1758889231711,0.3243,3886.3,3885.3,0.3309]
[1758889231712,0.1334,3886.0,3885.0,1.15747]
[1758889231907,3.3412,3885.5,3885.4,0.46294]
[1758889232213,3.6655,3885.5,3885.4,0.46294]
[1758889232412,3.77034771,3885.5,3885.4,0.46294]
[1758889233314,0.3243,3885.4,3885.3,0.46295]
[1758889233509,0.42914771,3885.4,3885.3,0.46295]
[1758889235704,0.46296,3885.3,3884.4,1.15763]
[1758889235910,3.2078,3885.1,3885.0,0.46299]
[1758889236109,3.31264771,3885.1,3885.0,0.46299]
[1758889236410,3.63694771,3885.1,3885.0,0.46299]
[1758889236603,0.3243,3884.9,3884.8,0.46301]
[1758889236807,0.3243,3884.9,3883.4,2.31589]
[1758889236808,0.4577,3884.0,3883.9,0.46311]
[1758889237011,3.77034771,3884.0,3883.9,0.46311]
[1758889238020,0.3243,3883.9,3883.8,0.46313]
[1758889238317,0.42914771,3883.9,3883.8,0.46313]
[1758889238522,0.10484771,3883.9,3883.8,0.81023]
[1758889238718,0.10484771,3883.9,3883.8,5.81023]
[1758889238917,0.3296,3884.3,3884.1,0.8102]
[1758889239116,0.10513664,3884.2,3884.1,0.8102]
[1758889241223,0.10513664,3884.2,3884.1,5.8102]
[1758889241818,0.10513664,3884.2,3884.1,0.8102]
[1758889244824,3.5374,3884.5,3884.4,0.46306]
[1758889245028,3.64251507,3884.5,3884.4,0.46306]
[1758889245518,3.31291507,3884.5,3884.4,0.81016]
[1758889245723,0.10511507,3884.5,3884.4,0.76016]
[1758889246936,0.43471507,3884.5,3884.4,0.67806]
[1758889247130,0.57491507,3884.5,3884.4,0.67806]
[1758889247531,3.78271507,3884.5,3884.4,0.67806]
[1758889249036,3.78271507,3884.5,3884.4,0.41306]
[1758889249831,4.23161507,3884.5,3884.4,0.41306]
[1758889250428,4.23161507,3884.5,3883.8,1.15783]
[1758889250429,3.90201507,3884.5,3883.8,1.15783]
[1758889250743,1.34667507,3884.4,3884.3,0.46307]
[1758889251337,1.34667507,3884.4,3883.9,0.46312]
[1758889251338,0.1402,3884.0,3883.9,0.46312]
[1758889251538,13.53594362,3884.0,3883.9,0.46312]
[1758889251932,13.07283362,3884.0,3883.9,0.46312]
[1758889252740,13.53594362,3884.0,3883.9,0.46312]
[1758889253038,13.07283362,3884.0,3883.9,0.46312]
[1758889253835,13.53594362,3884.0,3883.9,0.46312]
[1758889254233,3.31291507,3884.0,3883.9,1.49962]
[1758889254634,3.2078,3884.4,3884.3,0.46307]
[1758889254842,3.2078,3884.4,3884.3,0.81017]
[1758889255837,0.3296,3885.5,3885.4,0.46294]
[1758889256336,0.4698,3885.5,3885.4,0.72894]
[1758889259837,0.4698,3885.5,3885.4,0.46294]
[1758889260139,0.4698,3885.5,3885.4,0.72894]
[1758889260342,0.3296,3885.5,3885.4,1.07604]
[1758889261141,0.3296,3885.5,3885.4,0.72894]
[1758889261444,0.3553,3885.8,3885.7,0.4629]
[1758889261840,0.3296,3885.8,3885.7,0.4629]
[1758889262332,0.7785,3885.8,3885.7,0.6773]
[1758889262535,0.7785,3885.8,3885.7,0.4629]
[1758889263545,0.7785,3885.8,3885.1,1.15745]
[1758889263546,0.2166,3885.2,3885.1,0.46298]
[1758889263736,11.1310311,3885.2,3885.1,0.46298]
[1758889264242,16.1310311,3885.2,3885.1,0.46298]
[1758889264547,16.1310311,3885.2,3884.8,0.265]
[1758889264548,0.3296,3884.9,3884.8,0.72801]
[1758889264743,0.3296,3884.9,3884.8,0.46301]
[1758889264936,0.1659,3885.5,3884.8,0.81011]
[1758889265141,0.5009,3885.5,3885.4,0.46294]
[1758889265846,0.96383,3885.5,3885.4,0.46294]
[1758889266042,5.5009,3885.5,3884.4,1.48744]
[1758889266342,5.5009,3885.5,3884.6,0.266]
[1758889266343,0.1295,3885.0,3884.6,0.266]
[1758889266547,0.335,3884.6,3884.5,0.46305]
[1758889266749,0.44164404,3884.6,3884.5,0.46305]
[1758889267350,0.335,3884.3,3884.2,0.46308]
[1758889267548,0.335,3884.1,3884.0,0.4631]
[1758889267748,0.44164404,3884.1,3884.0,0.4631]
[1758889267941,0.79812,3883.9,3883.6,0.46314]
[1758889268140,0.335,3883.7,3883.6,0.46315]
[1758889268444,0.44164404,3883.7,3883.6,0.46315]
[1758889268642,0.3488,3883.4,3883.3,0.74107851]
[1758889268838,0.45544404,3883.4,3883.3,0.47507851]
[1758889269644,0.45544404,3883.4,3883.3,0.01189851]
[1758889272348,0.7935,3883.4,3883.3,0.01189851]
[1758889272850,0.7935,3883.4,3883.3,0.90158851]
[1758889273348,0.7935,3883.4,3883.3,1.22808851]
[1758889273747,0.7935,3883.4,3883.3,0.90158851]
[1758889275248,3.2078,3883.5,3883.4,1.21618]
[1758889275447,4.1308,3884.0,3883.9,0.46312]
[1758889276953,4.1308,3884.0,3883.4,0.266]
[1758889277254,8.3871311,3883.6,3883.5,0.266]
[1758889277455,8.49350779,3883.6,3883.5,0.266]
[1758889277759,11.70130779,3883.6,3883.5,0.72916]
[1758889277957,12.16445779,3883.6,3883.5,0.72916]
[1758889278254,12.16445407,3883.6,3883.5,0.72916]
[1758889279351,12.16445407,3883.6,3883.5,0.46316]
[1758889279555,1.25668,3883.4,3883.3,0.01189851]
[1758889279855,1.36305297,3883.4,3883.3,0.01189851]
[1758889280252,1.36305297,3883.4,3883.3,0.47508851]
[1758889280551,1.36305297,3883.4,3883.3,0.01189851]
[1758889281056,1.36305297,3883.4,3883.3,0.47508851]
[1758889281247,1.36305297,3883.4,3883.3,0.01189851]
[1758889281660,0.89987297,3883.4,3883.3,0.47508851]
[1758889281858,1.36305297,3883.4,3883.3,0.47508851]
[1758889282555,0.89987297,3883.4,3883.3,0.68878851]
[1758889282754,0.89987297,3883.4,3883.3,1.49408851]
[1758889282755,0.10637297,3883.4,3883.3,1.49408851]
[1758889283060,3.4365,3883.6,3883.5,0.88966]
[1758889283246,3.75845211,3883.6,3883.5,0.88966]
[1758889283452,0.7935,3883.4,3883.3,0.01189851]
[1758889283659,0.89945211,3883.4,3883.3,0.01189851]
[1758889283958,0.89945211,3883.4,3883.3,0.47508851]
[1758889284357,1.36263211,3883.4,3883.3,0.47508851]
[1758889284854,0.89945211,3883.4,3883.3,0.47508851]
[1758889285054,1.36263211,3883.4,3883.3,0.01189851]
[1758889286266,0.4632,3883.2,3883.1,0.42510851]
[1758889286552,12.16408321,3883.2,3883.1,0.42510851]
[1758889286755,0.59653,3883.0,3882.9,0.46323]
[1758889286967,0.9268,3883.0,3882.9,0.46323]
[1758889287759,0.4821,3882.0,3881.6,3.2078]
[1758889287963,11.5856,3881.4,3879.9,3.2078]
[1758889288261,3.2078,3880.2,3879.5,0.1291]
[1758889288448,3.2078,3880.2,3879.6,0.037]
[1758889288647,3.2078,3880.2,3880.1,0.3265]
[1758889288858,3.33038209,3880.2,3880.1,0.3265]
[1758889289059,3.33038209,3880.2,3880.1,5.3265]
[1758889289258,3.2078,3880.6,3880.5,0.91912]
[1758889289452,3.2078,3881.1,3881.0,0.4556]
[1758889289654,3.33030938,3881.1,3881.0,0.6736]
[1758889290262,3.33030938,3881.1,3881.0,0.7236]
[1758889290764,3.3302716,3881.1,3881.0,0.7236]
[1758889291364,10.9239027,3881.1,3881.0,0.4556]
[1758889291756,3.3302716,3881.1,3881.0,0.4556]
[1758889293958,10.9239027,3881.1,3881.0,0.4556]
[1758889294160,16.1919027,3881.1,3881.0,0.4556]
[1758889294365,0.46351,3880.6,3880.5,0.1291]
[1758889294563,11.3874127,3880.6,3880.5,0.1291]
[1758889294760,10.9239027,3880.6,3880.5,0.1291]
[1758889295761,16.1909027,3880.6,3880.5,0.1291]
[1758889295966,16.1909027,3880.6,3880.0,0.1291]
[1758889295967,8.0572011,3880.1,3880.0,0.1291]
[1758889296160,11.6554727,3880.1,3880.0,0.1291]
[1758889296361,11.6554727,3880.1,3880.0,0.4556]
[1758889296663,11.6554727,3880.1,3878.8,3.2078]
[1758889296664,0.46363,3879.6,3878.8,3.2078]
[1758889296861,0.46369,3879.1,3878.5,0.1291]
[1758889297067,11.3875927,3879.1,3878.5,0.1291]
[1758889297365,11.3875927,3879.1,3878.6,0.46375]
[1758889297769,11.3875927,3879.1,3878.5,0.1291]
[1758889298665,16.3875927,3879.1,3879.0,0.4706]
[1758889298965,0.46381,3878.2,3878.0,0.1291]
[1758889299167,3.3302716,3878.1,3878.0,0.59292]
[1758889299862,3.3302716,3878.1,3878.0,5.59292]
[1758889300260,10.9239027,3878.1,3878.0,0.1291]
[1758889300860,10.9239027,3878.1,3878.0,0.4706]
[1758889301657,11.1919027,3878.1,3878.0,0.4706]
[1758889303371,3.3302716,3878.1,3878.0,0.4706]
[1758889303962,3.3302716,3878.1,3878.0,5.4706]
[1758889304365,0.0257,3878.2,3878.1,0.4638]
[1758889304659,3.2078,3878.5,3878.4,0.80527]
[1758889304860,3.2078,3878.5,3878.4,0.3415]
[1758889305873,3.2078,3878.9,3878.8,0.46372]
[1758889306066,3.2078,3878.9,3878.8,0.80522]
[1758889306569,3.2078,3878.9,3878.8,0.3415]
[1758889306866,8.4758,3878.9,3878.5,0.1321]
[1758889307172,0.46381,3878.2,3877.5,0.1321]
[1758889307367,11.0704311,3878.1,3877.6,0.46387]
[1758889307969,11.0704311,3878.1,3877.7,0.46385]
[1758889308270,3.2078,3878.1,3877.8,0.46384]
[1758889308467,11.0704311,3878.1,3877.9,0.48961749]
[1758889308662,11.0704311,3878.1,3877.9,0.02578749]
[1758889309066,11.0704311,3878.1,3878.0,0.4706]
[1758889309375,10.8014311,3878.1,3878.0,0.93442]
[1758889310572,10.8014311,3878.5,3878.4,0.80527]
[1758889310871,7.5936311,3878.9,3878.8,0.46372]
[1758889311071,10.8014311,3878.9,3878.8,0.80522]
[1758889311267,7.5936311,3878.9,3878.8,0.3415]
[1758889311472,0.0257,3879.2,3878.8,1.50081]
[1758889311666,0.0257,3879.2,3879.0,0.3415]
[1758889311873,3.2078,3879.3,3879.1,0.46369]
[1758889312167,3.2078,3879.3,3879.2,0.3415]
[1758889313369,3.2078,3879.3,3879.2,0.00643921]
[1758889314969,3.2078,3879.3,3878.7,0.46373]
[1758889315172,0.46374,3878.7,3878.5,0.59586]
[1758889315375,0.46374,3878.7,3878.6,0.3415]
[1758889315571,1.28236723,3878.7,3878.5,0.1321]
[1758889315772,0.54962723,3878.6,3878.5,0.1321]
[1758889316079,11.0704311,3878.8,3878.6,0.3415]
[1758889316377,0.67671624,3878.7,3878.6,0.3415]
[1758889317069,0.12709241,3878.7,3878.6,5.55392408]
[1758889317965,0.12709241,3878.7,3878.6,0.82292408]
[1758889318580,0.12709241,3878.7,3878.6,5.82292408]
[1758889319080,3.2078,3878.8,3878.7,0.80524]
[1758889319269,3.33398508,3878.8,3878.7,0.80524]
[1758889319772,3.33398508,3878.8,3878.7,1.07424]
[1758889319976,3.33398508,3878.8,3878.7,5.80524]
[1758889320174,3.33398508,3878.8,3878.7,6.07424]
[1758889320472,0.12618508,3878.8,3878.7,1.07424]
[1758889321277,0.12618508,3878.8,3878.7,0.80524]
[1758889321485,3.33398508,3878.8,3878.7,1.07424]
[1758889321671,3.88609732,3878.8,3878.7,1.07424]
[1758889321872,0.67829732,3878.8,3878.7,1.07424]
[1758889322176,0.12618508,3878.8,3878.7,1.07424]
[1758889323277,0.67911472,3878.8,3878.7,1.07424]
[1758889323472,0.67911472,3878.8,3878.7,0.80524]
[1758889323675,1.14284472,3878.8,3878.7,0.3415]
[1758889324079,1.41184472,3878.8,3878.7,0.3352967]
[1758889324274,0.46375,3878.6,3878.5,0.1321]
[1758889324481,0.58993508,3878.6,3878.5,0.1321]
[1758889324679,0.94811472,3878.6,3878.0,0.1291]
[1758889324979,3.2078,3878.1,3878.0,0.59292]
[1758889325277,3.88691472,3878.1,3878.0,0.59292]
[1758889325980,4.35072472,3878.1,3878.0,0.1291]
[1758889326172,4.35072472,3878.1,3878.0,0.59292]
[1758889326375,4.35072472,3878.1,3878.0,0.4634]
[1758889326874,3.88691472,3878.1,3878.0,0.92722]
[1758889327072,4.35072472,3878.1,3878.0,0.4634]
[1758889327377,4.34993348,3878.1,3878.0,0.4634]
[1758889327579,0.46382,3878.0,3877.9,0.02578749]
[1758889327774,6.41114348,3878.0,3877.9,0.02578749]
[1758889328875,6.14214348,3878.0,3877.9,0.02578749]
[1758889329075,0.94632348,3878.0,3877.9,0.35498749]
[1758889329285,0.67832348,3878.0,3877.9,0.35498749]
[1758889329983,0.67832348,3878.0,3877.9,0.81881749]
[1758889330484,0.12539384,3878.0,3877.9,6.08781749]
[1758889330978,3.2078,3878.1,3878.0,0.79302]
[1758889331684,3.2078,3878.1,3878.0,1.06202]
[1758889332377,3.76106828,3878.1,3878.0,0.79302]
[1758889332573,3.76106828,3878.1,3878.0,0.93012]
[1758889333985,3.76106828,3878.1,3878.0,46.99912]
[1758889334176,3.76106828,3878.1,3878.0,41.99912]
[1758889334782,3.76106828,3878.1,3878.0,1.19912]
[1758889334988,3.2078,3878.1,3878.0,6.19912]
[1758889335589,3.2078,3878.1,3878.0,0.93012]
[1758889335777,3.2078,3878.1,3878.0,1.19912]
[1758889336082,3.2078,3878.1,3878.0,0.93012]
[1758889336289,3.7611728,3878.1,3878.0,0.93012]
[1758889336680,3.2078,3878.1,3878.0,0.93012]
[1758889338392,4.22525606,3878.1,3878.0,0.4663]
[1758889338583,0.46382,3878.0,3877.9,0.02578749]
[1758889338791,10.05746606,3878.0,3877.9,0.02578749]
[1758889339486,10.32646606,3878.0,3877.9,0.35498749]
[1758889339696,10.09646606,3878.0,3877.9,0.35498749]
[1758889339993,10.09646606,3878.0,3877.9,0.02578749]
[1758889340699,9.63264606,3878.0,3877.9,0.48961749]
[1758889340900,3.98646606,3878.0,3877.9,0.81881749]
[1758889341089,3.98646606,3878.0,3877.9,0.35498749]
[1758889341292,9.58646606,3878.0,3877.9,0.35498749]
[1758889341698,3.89646606,3878.0,3877.9,0.35498749]
[1758889342004,9.35264606,3878.0,3877.9,0.35498749]
[1758889342303,3.98264606,3878.0,3877.9,0.81881749]
[1758889342800,0.55364606,3878.0,3877.9,0.81881749]
[1758889343000,0.67149852,3878.0,3877.9,0.81881749]
[1758889343595,1.40431852,3878.0,3877.9,0.02578749]
[1758889343999,1.40431852,3878.0,3877.9,0.48961749]
[1758889344196,1.40431852,3878.0,3877.9,0.02578749]
[1758889345392,1.40431852,3878.0,3877.9,0.48961749]
[1758889345594,1.40431852,3878.0,3877.9,0.81881749]
[1758889345900,1.40431852,3878.0,3877.9,0.35498749]
[1758889346401,1.40331852,3878.0,3877.9,0.35498749]
[1758889347099,1.40331852,3878.0,3877.9,0.81881749]
[1758889347295,1.40331852,3878.0,3877.9,0.35498749]
[1758889347498,1.40331852,3878.0,3877.9,0.81881749]
[1758889347698,1.40331852,3878.0,3877.9,0.35498749]
[1758889347899,0.93949852,3878.0,3877.9,0.81881749]
[1758889348093,1.40331852,3878.0,3877.9,0.35498749]
[1758889348298,1.40331852,3878.0,3877.9,0.81881749]
[1758889348503,1.40331852,3878.0,3877.9,0.35498749]
[1758889348703,0.67149852,3878.0,3877.9,0.81881749]
[1758889348908,0.11785246,3878.0,3877.9,0.81881749]
[1758889349108,0.58167246,3878.0,3877.9,0.35498749]
[1758889349308,1.40318113,3878.0,3877.9,0.35498749]
[1758889349801,1.40318113,3878.0,3877.9,0.81881749]
[1758889349997,0.93936113,3878.0,3877.9,0.81881749]
[1758889350600,1.40318113,3878.0,3877.9,0.02578749]
[1758889352808,0.67136113,3878.0,3877.9,0.81881749]
[1758889353002,1.40318113,3878.0,3877.9,0.35498749]
[1758889353202,1.40318113,3878.0,3877.9,0.81881749]
[1758889353407,1.40318113,3878.0,3877.9,0.35498749]
[1758889353708,0.93936113,3878.0,3877.9,0.81881749]
[1758889353908,1.40318113,3878.0,3877.9,0.35498749]
[1758889354207,1.13518113,3878.0,3877.9,0.35498749]
[1758889354408,0.93936113,3878.0,3877.9,0.81881749]
[1758889354710,1.40318113,3878.0,3877.9,0.81881749]
[1758889355010,0.67136113,3878.0,3877.9,0.81881749]
[1758889355208,1.40318113,3878.0,3877.9,0.35498749]
[1758889356412,1.40318113,3878.0,3877.9,0.81881749]
[1758889356608,0.67136113,3878.0,3877.9,0.81881749]
[1758889357312,0.67136113,3878.0,3877.9,1.26571749]
[1758889357511,1.13518113,3878.0,3877.9,0.35498749]
[1758889357812,1.40318113,3878.0,3877.9,0.35498749]
[1758889358911,1.40318113,3878.0,3877.9,0.02578749]
[1758889359623,1.40318113,3878.0,3877.9,0.37058749]
[1758889360710,0.4639,3877.3,3877.2,0.67561]
[1758889360906,4.34310222,3877.3,3877.2,0.67561]
[1758889361312,4.34310222,3877.3,3877.2,1.02041]
[1758889361507,4.55040086,3877.3,3877.2,0.3448]
[1758889362214,0.46392,3877.2,3877.0,0.1371]
[1758889362510,1.13533222,3877.1,3877.0,0.60104]
[1758889363210,0.67140222,3877.1,3877.0,0.81344]
[1758889363509,0.67140222,3877.1,3877.0,1.04454]
[1758889363814,0.11785246,3877.1,3877.0,1.04454]
[1758889364315,0.11785246,3877.1,3877.0,1.38934]
[1758889365803,0.11785246,3877.1,3877.0,6.38934]
[1758889366215,9.00460499,3877.1,3877.0,1.38934]
[1758889366407,9.55894627,3877.1,3877.0,1.38934]
[1758889366608,0.11785246,3877.1,3877.0,1.38934]
[1758889367008,0.67220521,3877.1,3877.0,1.38934]
[1758889367218,1.13613521,3877.1,3877.0,1.38934]
[1758889368012,0.67220521,3877.1,3877.0,1.38934]
[1758889369018,1.13613521,3877.1,3877.0,1.38934]
[1758889369719,0.67220521,3877.1,3877.0,1.38934]
[1758889370619,0.11785246,3877.1,3877.0,6.38934]
[1758889370820,3.18201251,3877.3,3877.2,1.25222]
[1758889371020,3.18201251,3877.3,3877.2,1.51922]
[1758889372511,3.18201251,3877.3,3877.2,1.52022]
[1758889372714,3.18201251,3877.3,3877.2,1.25222]
[1758889373224,3.18201251,3877.3,3877.2,6.25222]
[1758889374217,0.0257,3878.4,3878.3,0.4435]
[1758889374426,0.58011664,3878.4,3878.3,1.25208]
[1758889374620,0.55441664,3878.4,3878.3,0.80858]
[1758889375420,3.2078,3878.5,3878.3,0.46378]
[1758889375620,3.2078,3878.5,3878.4,0.3448]
[1758889375823,3.76214426,3878.5,3878.4,0.3448]
[1758889376518,4.03014426,3878.5,3878.4,0.3448]